bitfinex/quotes_BTCUSD_20251205
["timestamp","ask_amount","ask_price","bid_price","bid_amount"]
[1764967166905,0.59906121,89392.0,89391.0,0.00069604]
[1764967167116,0.61252354,89392.0,89391.0,0.00069604]
[1764967167452,0.60422241,89392.0,89391.0,0.00069604]
[1764967167744,0.61422241,89392.0,89391.0,0.00069604]
[1764967167946,0.61622241,89392.0,89391.0,0.00069604]
[1764967168447,0.61422241,89392.0,89391.0,0.00069604]
[1764967168652,0.61622241,89392.0,89391.0,0.00069604]
[1764967168805,0.23585241,89392.0,89391.0,0.03923604]
[1764967169014,0.01211875,89392.0,89391.0,0.06115634]
[1764967169212,0.01211875,89392.0,89391.0,0.28489251]
[1764967169784,0.01211875,89392.0,89391.0,0.06115634]
[1764967170069,0.01211875,89392.0,89391.0,0.06106401]
[1764967170273,0.26554241,89392.0,89391.0,0.00060371]
[1764967170498,0.23967241,89392.0,89391.0,0.00060371]
[1764967170657,0.24867241,89392.0,89391.0,0.00060371]
[1764967170852,0.23967241,89392.0,89391.0,0.00060371]
[1764967171286,0.24267241,89392.0,89391.0,0.00060371]
[1764967171689,0.24367241,89392.0,89391.0,0.00060371]
[1764967171870,0.00411875,89392.0,89391.0,0.05012401]
[1764967172069,0.00411875,89392.0,89391.0,0.29647018]
[1764967172348,0.00411875,89392.0,89391.0,0.27454988]
[1764967172563,0.00411875,89392.0,89391.0,0.29647018]
[1764967172892,0.00111875,89392.0,89391.0,0.29647018]
[1764967174152,0.00011875,89392.0,89391.0,0.29647018]
[1764967174358,0.00811875,89392.0,89391.0,0.29647018]
[1764967174599,0.00011875,89392.0,89391.0,0.29647018]
[1764967175112,0.00211875,89392.0,89391.0,0.29647018]
[1764967175255,0.00211875,89392.0,89391.0,0.29747018]
[1764967176746,0.00211875,89392.0,89391.0,0.35999317]
[1764967178006,0.00211875,89392.0,89391.0,0.136257]
[1764967178614,0.22585241,89392.0,89391.0,0.136257]
[1764967178820,0.00211875,89392.0,89391.0,0.136257]
[1764967179256,0.00211875,89392.0,89391.0,0.35999317]
[1764967186607,0.00211875,89392.0,89391.0,0.50379317]
[1764967188385,0.00211875,89392.0,89391.0,0.49879317]
[1764967192956,0.00211875,89392.0,89391.0,0.275057]
[1764967193388,0.22585241,89392.0,89391.0,0.275057]
[1764967193787,0.22585241,89392.0,89391.0,0.2531367]
[1764967194012,0.00211875,89392.0,89391.0,0.275057]
[1764967194215,0.00211875,89392.0,89391.0,0.49879317]
[1764967197448,0.00211875,89392.0,89391.0,0.292737]
[1764967197652,0.00211875,89392.0,89391.0,0.51647317]
[1764967197886,0.00211875,89392.0,89391.0,0.292737]
[1764967198304,0.22585241,89392.0,89391.0,0.292737]
[1764967198736,0.22585241,89392.0,89391.0,0.275057]
[1764967199727,0.22585241,89392.0,89391.0,0.27340543]
[1764967200290,0.22585241,89392.0,89391.0,0.1717203]
[1764967200493,0.00211875,89392.0,89391.0,0.1717203]
[1764967200690,0.22585241,89392.0,89391.0,0.15903]
[1764967201413,0.22385241,89392.0,89391.0,0.15803]
[1764967201573,0.22585241,89392.0,89391.0,0.15903]
[1764967201783,0.22585241,89392.0,89391.0,0.18386]
[1764967202026,0.22585241,89392.0,89391.0,0.15903]
[1764967202249,0.22585241,89392.0,89391.0,0.18386]
[1764967202970,0.22585241,89392.0,89391.0,0.15903]
[1764967204350,0.00211875,89392.0,89391.0,0.0715703]
[1764967204988,0.22585241,89392.0,89391.0,0.0715703]
[1764967205843,0.00211875,89392.0,89391.0,0.35782946]
[1764967206044,0.00211875,89392.0,89391.0,0.33590916]
[1764967206195,0.00211875,89392.0,89391.0,0.35782946]
[1764967206880,0.00211875,89392.0,89391.0,0.35682946]
[1764967207436,0.00211875,89392.0,89391.0,0.35782946]
[1764967207857,0.00211875,89392.0,89391.0,0.35682946]
[1764967208088,0.02401445,89431.0,89426.0,0.01118243]
[1764967208311,0.23479452,89440.0,89435.0,0.0111813]
[1764967208514,0.0111808,89439.0,89435.0,0.0111813]
[1764967208716,0.0111808,89439.0,89438.0,0.0219203]
[1764967208875,0.0111808,89439.0,89438.0,0.0372803]
[1764967209077,0.0111808,89439.0,89438.0,0.0613403]
[1764967209706,0.001,89439.0,89438.0,0.0372803]
[1764967209911,0.001,89439.0,89438.0,0.0613403]
[1764967210112,0.001,89439.0,89438.0,0.03942]
[1764967210307,0.001,89439.0,89438.0,0.0613403]
[1764967210513,0.001,89439.0,89438.0,0.12386329]
[1764967210757,0.001,89439.0,89438.0,0.12486329]
[1764967211098,9.758e-05,89440.0,89439.0,0.30805938]
[1764967211302,9.758e-05,89440.0,89439.0,0.34747938]
[1764967212953,9.758e-05,89440.0,89439.0,0.34847938]
[1764967213156,0.00209758,89440.0,89439.0,0.34947938]
[1764967213621,0.00209758,89440.0,89439.0,0.0239203]
[1764967213810,0.00209758,89440.0,89439.0,0.0229203]
[1764967214720,9.758e-05,89440.0,89439.0,0.0229203]
[1764967215020,0.00109758,89440.0,89439.0,0.0249203]
[1764967215930,0.00109758,89440.0,89439.0,0.003]
[1764967215931,0.46189165,89440.0,89439.0,0.003]
[1764967216136,0.36561045,89440.0,89439.0,0.003]
[1764967216964,2.93763945,89440.0,89439.0,0.003]
[1764967217221,2.93763945,89440.0,89439.0,0.002]
[1764967217465,2.93963945,89440.0,89439.0,0.002]
[1764967218079,0.22368612,89411.0,89410.0,0.07399299]
[1764967218506,0.22368612,89411.0,89410.0,0.08935299]
[1764967218739,0.22368612,89411.0,89410.0,0.02683]
[1764967219134,0.22368612,89411.0,89410.0,0.01147]
[1764967219434,0.22378364,89411.0,89410.0,0.01147]
[1764967219592,0.00209752,89411.0,89410.0,0.05389]
[1764967220026,0.00209752,89411.0,89410.0,0.0758103]
[1764967222438,0.22578364,89411.0,89410.0,0.0517503]
[1764967222693,0.22578364,89411.0,89410.0,0.0363903]
[1764967223161,0.22578364,89411.0,89410.0,0.0373903]
[1764967223365,0.22578364,89411.0,89410.0,0.004]
[1764967223366,0.36674652,89411.0,89410.0,0.004]
[1764967223539,0.28336364,89411.0,89410.0,0.004]
[1764967224550,0.28136364,89411.0,89410.0,0.001]
[1764967224747,0.28136364,89411.0,89397.0,0.01118605]
[1764967224748,0.22371925,89398.0,89397.0,0.0219203]
[1764967225618,0.23491195,89396.0,89392.0,0.23491918]
[1764967225820,0.23491195,89396.0,89395.0,0.0219203]
[1764967226052,0.01218593,89398.0,89395.0,0.0372803]
[1764967226248,0.22372365,89396.0,89395.0,0.0372803]
[1764967226562,0.22372126,89397.0,89395.0,0.0372803]
[1764967226766,0.22372126,89397.0,89395.0,0.0613403]
[1764967227124,0.22372126,89397.0,89395.0,0.0372803]
[1764967227587,0.22372126,89397.0,89395.0,0.0382803]
[1764967227941,0.002,89396.0,89395.0,0.0412803]
[1764967228150,0.22372126,89397.0,89395.0,0.0372803]
[1764967228377,0.22372126,89397.0,89395.0,0.0382803]
[1764967228586,0.22572126,89397.0,89395.0,0.0412803]
[1764967228806,0.22372126,89397.0,89395.0,0.0382803]
[1764967229114,0.22372126,89397.0,89395.0,0.0412803]
[1764967229332,0.002,89396.0,89395.0,0.0412803]
[1764967229476,0.22372126,89397.0,89395.0,0.0382803]
[1764967229688,0.23490954,89398.0,89395.0,0.0382803]
[1764967229894,0.01118518,89404.0,89399.0,0.0111858]
[1764967230245,0.23488881,89404.0,89403.0,0.0438403]
[1764967230594,0.23488177,89407.0,89406.0,0.0219203]
[1764967230835,0.23488177,89407.0,89406.0,0.0372803]
[1764967231137,0.23488093,89407.0,89406.0,0.0613403]
[1764967231375,0.22370363,89404.0,89403.0,0.0284803]
[1764967231583,0.22372406,89396.0,89392.0,0.28625639]
[1764967231802,0.2349141,89395.0,89392.0,0.07370967]
[1764967232002,0.22372952,89394.0,89392.0,0.06252299]
[1764967232230,0.23491595,89394.0,89391.0,0.0445771]
[1764967232397,0.23491595,89394.0,89391.0,0.0467168]
[1764967232629,0.23491595,89394.0,89391.0,0.27045258]
[1764967232832,0.22373187,89393.0,89391.0,0.0468868]
[1764967233032,0.22373366,89392.0,89391.0,0.09822299]
[1764967233269,0.22373366,89392.0,89391.0,0.0219203]
[1764967233750,0.22373366,89392.0,89391.0,0.0229203]
[1764967234794,0.22373366,89392.0,89391.0,0.0219203]
[1764967236230,0.22373366,89392.0,89391.0,0.0229203]
[1764967238439,0.22373366,89392.0,89391.0,0.0269203]
[1764967238655,0.22573366,89392.0,89391.0,0.0269203]
[1764967243038,0.002,89392.0,89391.0,0.0269203]
[1764967243259,0.002,89392.0,89391.0,0.31240008]
[1764967243441,0.002,89392.0,89391.0,0.0662903]
[1764967243659,0.22573366,89392.0,89391.0,0.0269203]
[1764967243964,0.002,89392.0,89391.0,0.0420603]
[1764967244249,0.002,89392.0,89391.0,0.29002647]
[1764967244669,0.002,89392.0,89391.0,0.35254946]
[1764967247259,0.002,89392.0,89391.0,0.35184125]
[1764967248954,0.002,89392.0,89391.0,0.50064125]
[1764967251170,0.002,89392.0,89391.0,0.51228125]
[1764967251656,0.26458366,89392.0,89391.0,0.00429179]
[1764967252071,0.24090366,89392.0,89391.0,0.00429179]
[1764967252277,0.26458366,89392.0,89391.0,0.00429179]
[1764967252735,0.58758366,89392.0,89391.0,0.004]
[1764967252943,0.22375369,89384.0,89383.0,0.02216245]
[1764967254112,0.22385116,89384.0,89383.0,0.02216245]
[1764967254740,0.22585116,89384.0,89383.0,0.02416245]
[1764967255392,0.22585116,89384.0,89383.0,0.02516245]
[1764967255539,0.26536116,89384.0,89383.0,0.00324215]
[1764967256861,0.26697403,89384.0,89383.0,0.00324215]
[1764967258994,0.24287403,89384.0,89383.0,0.00324215]
[1764967259217,0.26697403,89384.0,89383.0,0.00324215]
[1764967260347,0.26697403,89384.0,89383.0,0.02516245]
[1764967260348,0.22585116,89384.0,89383.0,0.02516245]
[1764967262358,0.22585116,89384.0,89383.0,0.04170245]
[1764967262359,0.00209747,89384.0,89383.0,0.04170245]
[1764967262584,0.00209747,89384.0,89383.0,0.31248425]
[1764967262789,0.00209747,89384.0,89383.0,0.29010864]
[1764967263227,0.00209747,89384.0,89383.0,0.35263163]
[1764967266754,0.00209747,89384.0,89383.0,0.50143163]
[1764967266946,0.00209747,89384.0,89383.0,0.35263163]
[1764967267972,0.00209747,89384.0,89383.0,0.35163163]
[1764967268185,9.747e-05,89384.0,89383.0,0.34963163]
[1764967268350,0.00209747,89384.0,89383.0,0.35263163]
[1764967272724,0.00209747,89384.0,89383.0,0.50143163]
[1764967274291,0.00209747,89384.0,89383.0,0.51911163]
[1764967276955,0.00209747,89384.0,89383.0,0.50143163]
[1764967281066,0.00209747,89384.0,89383.0,0.50701163]
[1764967290465,0.00209747,89384.0,89383.0,0.50601163]
[1764967290670,0.00209747,89384.0,89383.0,0.82901163]
[1764967290874,9.747e-05,89384.0,89383.0,0.82901163]
[1764967291611,0.00209747,89384.0,89383.0,0.52969163]
[1764967291834,0.00209747,89384.0,89383.0,0.52769163]
[1764967292001,9.747e-05,89384.0,89383.0,0.52169163]
[1764967292168,0.00209747,89384.0,89383.0,0.52869163]
[1764967292383,0.00209747,89384.0,89383.0,0.44848864]
[1764967292579,9.747e-05,89384.0,89383.0,0.29268864]
[1764967292792,0.00109747,89384.0,89383.0,0.33556163]
[1764967292998,0.00109747,89384.0,89383.0,0.35899163]
[1764967293194,0.00109747,89384.0,89383.0,0.36099163]
[1764967293869,0.00109747,89384.0,89383.0,0.35899163]
[1764967293996,9.747e-05,89384.0,89383.0,0.35499163]
[1764967294404,0.22485116,89384.0,89383.0,0.03074245]
[1764967294602,0.22485116,89384.0,89383.0,0.02516245]
[1764967294805,0.26431116,89384.0,89383.0,0.02516245]
[1764967295643,0.26431116,89384.0,89380.0,0.0004]
[1764967295644,0.6810293,89384.0,89380.0,0.0004]
[1764967295845,0.6810293,89384.0,89350.0,0.0004]
[1764967295846,0.54683633,89351.0,89350.0,0.0004]
[1764967296046,0.323,89351.0,89350.0,0.0004]
[1764967296412,0.34229287,89351.0,89350.0,0.0004]
[1764967296584,0.39344287,89351.0,89350.0,0.0004]
[1764967296789,0.37046287,89351.0,89350.0,0.0223203]
[1764967297087,0.37056028,89351.0,89350.0,0.0223203]
[1764967297445,0.35408028,89351.0,89350.0,0.0223203]
[1764967297643,0.35708028,89351.0,89350.0,0.0243203]
[1764967298629,0.39654028,89351.0,89350.0,0.0024]
[1764967298845,0.32771028,89351.0,89350.0,0.0024]
[1764967299054,0.00471028,89351.0,89350.0,0.0024]
[1764967299341,0.00471028,89351.0,89350.0,0.0403403]
[1764967299342,0.02077741,89351.0,89350.0,0.0403403]
[1764967300435,0.02077741,89351.0,89350.0,0.0637703]
[1764967300642,0.07354028,89351.0,89350.0,0.0024]
[1764967300842,0.02239028,89351.0,89350.0,0.0243203]
[1764967301479,0.02239028,89351.0,89350.0,0.0253196]
[1764967304007,0.00471028,89351.0,89350.0,0.0647696]
[1764967304196,0.00309741,89351.0,89350.0,0.0413396]
[1764967304993,0.00309741,89351.0,89350.0,0.0647696]
[1764967305197,0.00309741,89351.0,89350.0,0.0413396]
[1764967305881,0.00309741,89351.0,89350.0,0.0253196]
[1764967307687,0.00309741,89351.0,89350.0,0.0413396]
[1764967307905,0.00309741,89351.0,89350.0,0.0647696]
[1764967308948,0.00309741,89351.0,89350.0,0.0253196]
[1764967309929,0.22693374,89351.0,89350.0,0.0253196]
[1764967310104,0.00309741,89351.0,89350.0,0.0253196]
[1764967310931,0.22693374,89351.0,89350.0,0.0253196]
[1764967311533,0.00309741,89351.0,89350.0,0.0647696]
[1764967311935,0.22693374,89351.0,89350.0,0.0413396]
[1764967313358,0.00309741,89351.0,89350.0,0.0413396]
[1764967313560,0.00309741,89351.0,89350.0,0.28860843]
[1764967313862,0.00309741,89351.0,89350.0,0.35113142]
[1764967314100,0.00309741,89351.0,89350.0,0.36881142]
[1764967315050,9.741e-05,89351.0,89350.0,0.36681142]
[1764967315451,0.00109741,89351.0,89350.0,0.36881142]
[1764967315655,9.741e-05,89351.0,89350.0,0.36781142]
[1764967315857,9.741e-05,89351.0,89350.0,0.36681142]
[1764967316250,9.741e-05,89351.0,89350.0,0.36881142]
[1764967317048,0.00109741,89351.0,89350.0,0.37281142]
[1764967317371,9.741e-05,89351.0,89350.0,0.68981142]
[1764967317886,0.00109741,89351.0,89350.0,0.69581142]
[1764967318735,0.00109741,89351.0,89350.0,0.69781142]
[1764967318945,0.23493415,89387.0,89386.0,0.0219203]
[1764967319597,0.23493415,89387.0,89381.0,0.01118806]
[1764967319598,0.05185287,89387.0,89353.0,0.00361]
[1764967319778,0.23497841,89370.0,89369.0,0.0219203]
[1764967320560,0.22380627,89363.0,89362.0,0.08444329]
[1764967320873,0.23499132,89365.0,89364.0,0.0219203]
[1764967321027,0.2238213,89357.0,89356.0,0.0219203]
[1764967321234,0.01119081,89359.0,89350.0,0.02472]
[1764967321235,0.01119131,89355.0,89354.0,0.1488]
[1764967321447,0.01119131,89355.0,89354.0,0.1707203]
[1764967321448,0.23501762,89355.0,89354.0,0.1707203]
[1764967321657,0.23501966,89356.0,89355.0,0.0219203]
[1764967321851,0.22382631,89355.0,89354.0,0.1707203]
[1764967322054,0.22382631,89355.0,89351.0,0.0219203]
[1764967322055,0.22383382,89352.0,89351.0,0.0219203]
[1764967322621,0.22383382,89352.0,89351.0,0.0255303]
[1764967323037,0.22383382,89352.0,89351.0,0.0219203]
[1764967323273,0.23502344,89353.0,89351.0,0.0656303]
[1764967323389,0.23502344,89353.0,89352.0,0.0219203]
[1764967324499,0.23702344,89353.0,89352.0,0.0229203]
[1764967324818,0.23702344,89353.0,89352.0,0.02385901]
[1764967325899,0.23702344,89353.0,89352.0,0.02485901]
[1764967326418,0.23702344,89353.0,89352.0,0.06480901]
[1764967326623,0.23702344,89353.0,89352.0,0.04071901]
[1764967326864,0.23702344,89353.0,89352.0,0.02485901]
[1764967329776,0.25352344,89353.0,89352.0,0.02485901]
[1764967329974,0.23702344,89353.0,89352.0,0.02485901]
[1764967330497,0.23702344,89353.0,89352.0,0.00293871]
[1764967330498,0.27661344,89353.0,89352.0,0.00293871]
[1764967331406,0.27661344,89353.0,89352.0,0.00193871]
[1764967331609,0.25470344,89353.0,89352.0,0.00193871]
[1764967331828,0.25270344,89353.0,89352.0,0.02385901]
[1764967332051,0.23502344,89353.0,89352.0,0.02385901]
[1764967332252,0.23802344,89353.0,89352.0,0.02485901]
[1764967334311,0.003,89353.0,89352.0,0.35116582]
[1764967338117,0.003,89353.0,89352.0,0.49996582]
[1764967339118,0.003,89353.0,89352.0,0.50036063]
[1764967340068,0.003,89353.0,89352.0,0.16799352]
[1764967340268,0.22683132,89353.0,89352.0,0.17405382]
[1764967341085,0.26642132,89353.0,89352.0,0.15213352]
[1764967341545,0.26642132,89353.0,89352.0,0.17405382]
[1764967341951,0.24333132,89353.0,89352.0,0.17405382]
[1764967342589,0.22683132,89353.0,89352.0,0.17405382]
[1764967343964,0.22683132,89353.0,89352.0,0.02525382]
[1764967345109,0.003,89353.0,89352.0,0.06520382]
[1764967345270,0.003,89353.0,89352.0,0.28903764]
[1764967346557,0.003,89353.0,89352.0,0.22716734]
[1764967346769,0.003,89353.0,89352.0,0.24908764]
[1764967352089,0.003,89353.0,89352.0,0.28903764]
[1764967354393,0.003,89353.0,89352.0,0.35156063]
[1764967355464,0.01119018,89364.0,89362.0,0.2238084]
[1764967355677,0.01119018,89364.0,89363.0,0.0219203]
[1764967356521,0.23498806,89367.0,89366.0,0.0219203]
[1764967358482,0.04662112,89390.0,89366.0,0.04824023]
[1764967358483,0.01118931,89371.0,89366.0,0.04824023]
[1764967358614,0.01118856,89377.0,89376.0,0.0219203]
[1764967359003,0.23495869,89378.0,89377.0,0.0219203]
[1764967360229,0.22377188,89377.0,89375.0,0.01118881]
[1764967360895,0.23695869,89378.0,89375.0,0.23496468]
[1764967361223,0.01752239,89543.0,89380.0,0.01118818]
[1764967361224,0.23494141,89384.0,89380.0,0.01118818]
[1764967361362,0.23494141,89384.0,89382.0,0.0219203]
[1764967361540,0.22375646,89383.0,89382.0,0.0219203]
[1764967361743,0.01118743,89386.0,89382.0,0.24567767]
[1764967361951,0.01118743,89386.0,89381.0,0.0219203]
[1764967361952,0.01118793,89382.0,89381.0,0.0219203]
[1764967362160,0.23494716,89382.0,89381.0,0.0219203]
[1764967362358,0.22375675,89383.0,89382.0,0.0219203]
[1764967362560,0.22375675,89383.0,89382.0,0.0239203]
[1764967364079,0.23075369,89384.0,89383.0,0.0219203]
[1764967364469,0.01118618,89396.0,89383.0,0.03948]
[1764967364668,0.01118505,89405.0,89399.0,0.0111858]
[1764967364871,0.01118505,89405.0,89404.0,0.0219203]
[1764967364999,0.33579792,89405.0,89404.0,0.0219203]
[1764967365202,0.35126792,89405.0,89404.0,0.0219203]
[1764967365407,0.37621792,89405.0,89404.0,0.0219203]
[1764967366236,0.37621792,89405.0,89395.0,0.2237252]
[1764967366237,0.0111858,89399.0,89395.0,0.2237252]
[1764967366437,0.01118543,89402.0,89401.0,0.0219203]
[1764967366636,0.37621792,89405.0,89402.0,0.0219203]
[1764967366637,0.587451,89405.0,89402.0,0.0219203]
[1764967366840,0.587451,89405.0,89403.0,0.0219203]
[1764967367038,0.562501,89405.0,89403.0,0.0219203]
[1764967367262,0.04042,89404.0,89403.0,0.0219203]
[1764967367463,0.04203287,89404.0,89403.0,0.0219203]
[1764967369655,0.04403287,89404.0,89403.0,0.0219203]
[1764967369957,0.04403287,89404.0,89389.0,0.01711705]
[1764967369958,0.2237198,89398.0,89397.0,0.0219203]
[1764967370198,0.22374761,89387.0,89385.0,0.0219203]
[1764967370369,0.0151,89386.0,89385.0,0.0219203]
[1764967370553,0.23493374,89388.0,89385.0,0.0219203]
[1764967371072,0.2237464,89387.0,89385.0,0.0219203]
[1764967371831,0.22374868,89386.0,89385.0,0.0219203]
[1764967372169,0.22374868,89386.0,89381.0,0.00039481]
[1764967372170,0.22375869,89382.0,89381.0,0.00039481]
[1764967372367,0.23885869,89382.0,89381.0,0.00039481]
[1764967372616,0.26300869,89382.0,89381.0,0.00039481]
[1764967374926,0.26300869,89382.0,89381.0,0.00239481]
[1764967374927,0.27400869,89382.0,89381.0,0.00239481]
[1764967375267,0.27600869,89382.0,89381.0,0.00239481]
[1764967376358,0.59900869,89382.0,89381.0,0.00239481]
[1764967377597,0.58800869,89382.0,89381.0,0.00039481]
[1764967377798,0.58600869,89382.0,89381.0,0.00039481]
[1764967378018,0.70371375,89382.0,89381.0,0.00039481]
[1764967378223,0.70571375,89382.0,89381.0,0.00039481]
[1764967378633,0.59600869,89382.0,89381.0,0.00039481]
[1764967381490,0.61368869,89382.0,89381.0,0.00039481]
[1764967383556,0.55675869,89382.0,89381.0,0.00039481]
[1764967383770,0.61419869,89382.0,89381.0,0.00039481]
[1764967385032,0.01,89382.0,89381.0,0.28605631]
[1764967386067,0.008,89382.0,89381.0,0.28605631]
[1764967386275,0.008,89382.0,89381.0,0.28705631]
[1764967387111,0.23493331,89388.0,89387.0,0.0219203]
[1764967387616,0.01118655,89393.0,89392.0,0.0219203]
[1764967389813,0.01318655,89393.0,89392.0,0.0219203]
[1764967390185,0.01618655,89393.0,89392.0,0.0219203]
[1764967390543,0.01318655,89393.0,89392.0,0.0219203]
[1764967391084,0.23791771,89393.0,89392.0,0.0219203]
[1764967391284,0.23791771,89393.0,89392.0,0.0229203]
[1764967393661,0.003,89393.0,89392.0,0.0229203]
[1764967393863,0.003,89393.0,89392.0,0.24665396]
[1764967395274,0.003,89393.0,89392.0,0.28663396]
[1764967400221,0.22673116,89393.0,89392.0,0.0229203]
[1764967400393,0.26649116,89393.0,89392.0,0.0229203]
[1764967400599,0.24289116,89393.0,89392.0,0.0229203]
[1764967400799,0.26649116,89393.0,89392.0,0.001]
[1764967401380,0.22373617,89391.0,89390.0,0.0219203]
[1764967401581,0.22375118,89385.0,89384.0,0.1488]
[1764967401786,0.23991118,89385.0,89384.0,0.1488]
[1764967401993,0.58651118,89385.0,89384.0,0.1488]
[1764967402193,0.22375869,89382.0,89381.0,0.00039481]
[1764967402377,0.26351869,89382.0,89381.0,0.00039481]
[1764967402781,0.23991869,89382.0,89381.0,0.00039481]
[1764967402977,0.24143869,89382.0,89381.0,0.00039481]
[1764967403272,0.24143869,89382.0,89381.0,0.02231511]
[1764967403490,0.28119869,89382.0,89381.0,0.00039481]
[1764967404197,0.28719869,89382.0,89381.0,0.00039481]
[1764967404401,0.28219869,89382.0,89381.0,0.00039481]
[1764967404929,0.28519869,89382.0,89381.0,0.00039481]
[1764967405367,0.71094809,89382.0,89381.0,0.00039481]
[1764967405567,0.73483646,89382.0,89381.0,0.00039481]
[1764967406190,0.61640706,89382.0,89381.0,0.00039481]
[1764967406364,0.65117637,89382.0,89381.0,0.00039481]
[1764967406564,0.63408706,89382.0,89381.0,0.00039481]
[1764967406764,0.64527837,89382.0,89381.0,0.00039481]
[1764967407318,0.62139,89382.0,89381.0,0.00039481]
[1764967408628,0.73109506,89382.0,89381.0,0.00039481]
[1764967409713,0.62139,89382.0,89381.0,0.00039481]
[1764967417885,0.60371,89382.0,89381.0,0.00039481]
[1764967418084,0.59251869,89382.0,89381.0,0.00039481]
[1764967418289,0.61019869,89382.0,89381.0,0.00039481]
[1764967420210,0.59251869,89382.0,89381.0,0.00039481]
[1764967420411,0.61019869,89382.0,89381.0,0.00039481]
[1764967423233,0.58659869,89382.0,89381.0,0.02231511]
[1764967423382,0.61077869,89382.0,89381.0,0.02231511]
[1764967423810,0.59309869,89382.0,89381.0,0.02231511]
[1764967424089,0.61077869,89382.0,89381.0,0.02231511]
[1764967424509,0.22975869,89382.0,89381.0,0.00039481]
[1764967424865,0.26324869,89382.0,89381.0,0.00039481]
[1764967425040,0.28742869,89382.0,89381.0,0.00039481]
[1764967431201,0.29925869,89382.0,89381.0,0.00039481]
[1764967436424,0.25926869,89382.0,89381.0,0.00039481]
[1764967436599,0.25926869,89382.0,89381.0,0.02231511]
[1764967436794,0.22975869,89382.0,89381.0,0.00039481]
[1764967436999,0.22975869,89382.0,89381.0,0.04040481]
[1764967437360,0.22975869,89382.0,89381.0,0.02231511]
[1764967439548,0.28093869,89382.0,89381.0,0.02231511]
[1764967441109,0.24158869,89382.0,89381.0,0.02231511]
[1764967442661,0.26600869,89382.0,89381.0,0.02231511]
[1764967443264,0.24158869,89382.0,89381.0,0.02231511]
[1764967443494,0.006,89382.0,89381.0,0.06055511]
[1764967443732,0.006,89382.0,89381.0,0.28431631]
[1764967445146,0.004,89382.0,89381.0,0.28431631]
[1764967445347,0.004,89382.0,89381.0,0.06055511]
[1764967445506,0.004,89382.0,89381.0,0.06155511]
[1764967445724,0.004,89382.0,89381.0,0.3478393]
[1764967446074,0.01118605,89397.0,89396.0,0.0219203]
[1764967446209,0.2349072,89397.0,89396.0,0.0219203]
[1764967446409,0.22371444,89400.0,89396.0,0.07134648]
[1764967446612,0.0111853,89403.0,89400.0,0.0219203]
[1764967446818,0.22371106,89402.0,89400.0,0.01571]
[1764967447022,0.22371106,89402.0,89401.0,0.0444503]
[1764967447224,0.22371106,89402.0,89401.0,0.0601603]
[1764967447703,0.0111853,89403.0,89401.0,0.0601603]
[1764967447704,0.0111853,89403.0,89402.0,0.0219203]
[1764967447900,0.2348921,89403.0,89402.0,0.0219203]
[1764967449729,0.2348921,89403.0,89402.0,0.0229203]
[1764967449895,0.2368921,89403.0,89402.0,0.0239203]
[1764967450576,0.2368921,89403.0,89402.0,0.0396303]
[1764967452923,0.2368921,89403.0,89402.0,0.0239203]
[1764967454643,0.002,89403.0,89402.0,0.0239203]
[1764967455021,0.22570613,89403.0,89402.0,0.0239203]
[1764967455225,0.002,89403.0,89402.0,0.0239203]
[1764967455449,0.002,89403.0,89402.0,0.24762894]
[1764967456677,0.22570613,89403.0,89402.0,0.0239203]
[1764967457034,0.25290613,89403.0,89402.0,0.002]
[1764967457325,0.60032613,89403.0,89402.0,0.002]
[1764967458184,0.54671614,89399.0,89398.0,0.0219203]
[1764967458396,0.56235614,89399.0,89398.0,0.0219203]
[1764967458564,0.58677614,89399.0,89398.0,0.0219203]
[1764967460606,0.59677614,89399.0,89398.0,0.0239203]
[1764967460845,0.59777614,89399.0,89398.0,0.002]
[1764967461052,0.7074812,89399.0,89398.0,0.002]
[1764967461615,0.59777614,89399.0,89398.0,0.002]
[1764967461977,0.62168715,89399.0,89398.0,0.002]
[1764967462824,0.22375869,89382.0,89381.0,0.00039481]
[1764967463024,0.23939869,89382.0,89381.0,0.00039481]
[1764967463221,0.26381869,89382.0,89381.0,0.00039481]
[1764967463436,0.26381869,89382.0,89381.0,0.02231511]
[1764967464254,0.27281869,89382.0,89381.0,0.02231511]
[1764967464482,0.27281869,89382.0,89381.0,0.00039481]
[1764967465178,0.27481869,89382.0,89381.0,0.00039481]
[1764967472626,0.59781869,89382.0,89381.0,0.00039481]
[1764967472835,3.19374765,89382.0,89381.0,0.00039481]
[1764967473828,3.19174765,89382.0,89381.0,0.00039481]
[1764967474028,3.18274765,89382.0,89381.0,0.00039481]
[1764967474246,3.18474765,89382.0,89381.0,0.00039481]
[1764967474453,3.19274765,89382.0,89381.0,0.00039481]
[1764967474897,3.30245271,89382.0,89381.0,0.00039481]
[1764967479332,3.30241072,89382.0,89381.0,0.00039481]
[1764967479847,3.30241072,89382.0,89375.0,0.00024218]
[1764967479848,0.54677372,89376.0,89375.0,0.00024218]
[1764967480053,3.17591042,89376.0,89375.0,0.00024218]
[1764967480217,3.30973548,89376.0,89375.0,0.00024218]
[1764967481047,3.31173548,89376.0,89375.0,0.00024218]
[1764967481426,3.30973548,89376.0,89375.0,0.00024218]
[1764967481625,3.31573548,89376.0,89375.0,0.00024218]
[1764967481871,3.30973548,89376.0,89375.0,0.00024218]
[1764967483020,3.31173548,89376.0,89375.0,0.00024218]
[1764967483145,1.76398648,89376.0,89375.0,0.00024218]
[1764967483544,1.76558648,89376.0,89375.0,0.00024218]
[1764967484374,1.74790648,89376.0,89375.0,0.00024218]
[1764967484575,1.75778648,89376.0,89375.0,0.00024218]
[1764967485428,0.63900142,89376.0,89375.0,0.00024218]
[1764967485612,0.65668142,89376.0,89375.0,0.00024218]
[1764967490134,0.67978436,89376.0,89375.0,0.00024218]
[1764967490368,3.26218576,89376.0,89375.0,0.00024218]
[1764967492327,3.29200822,89376.0,89375.0,0.00024218]
[1764967492517,3.37189082,89376.0,89375.0,0.00024218]
[1764967492959,3.39379481,89376.0,89375.0,0.00024218]
[1764967493338,3.37189082,89376.0,89375.0,0.00024218]
[1764967495348,0.22383633,89351.0,89350.0,0.0004]
[1764967495559,0.25732633,89351.0,89350.0,0.0004]
[1764967495767,0.28189633,89351.0,89350.0,0.0004]
[1764967496170,0.60489633,89351.0,89350.0,0.0004]
[1764967496324,0.71460139,89351.0,89350.0,0.0004]
[1764967496673,0.71660139,89351.0,89350.0,0.0004]
[1764967496847,0.74043461,89351.0,89350.0,0.0004]
[1764967497048,0.76435303,89351.0,89350.0,0.0004]
[1764967497506,0.76435303,89351.0,89325.0,0.22389897]
[1764967497723,0.76435303,89351.0,89307.0,0.01119733]
[1764967497724,0.03869557,89321.0,89307.0,0.01119733]
[1764967497932,0.22391401,89320.0,89319.0,0.0219203]
[1764967498138,0.22390953,89322.0,89320.0,0.0219203]
[1764967498351,0.23510199,89323.0,89313.0,0.01202]
[1764967498562,0.23510004,89324.0,89321.0,0.0219203]
[1764967498773,0.01119532,89323.0,89313.0,0.02321657]